[Event "Teplice Open 2022"]
[Site "Teplice"]
[Date "2022.06.22"]
[Round "5.1"]
[White "Pultinevicius, Paulius"]
[Black "Fridman, Daniel"]
[Result "1-0"]
[ECO "D63"]
[WhiteElo "2536"]
[BlackElo "2605"]
[Annotator "TA"]
[PlyCount "111"]
[EventDate "2022.06.18"]
[EventType "swiss"]
[EventCountry "CZE"]
[SourceTitle "playchess.com"]
[Source "ChessBase"]
[SourceQuality "1"]
[TimeControl "40/5400+30:1800+30"]

{[%evp 14,111,25,19,17,12,16,11,8,4,13,6,6,6,10,0,4,0,0,0,0,0,19,0,9,0,2,0,0,0,0,0,35,34,20,14,47,58,47,52,71,75,181,179,183,181,171,167,221,157,254,256,237,260,272,264,342,300,364,362,333,316,316,283,276,227,228,230,229,206,243,232,235,243,338,335,339,324,352,354,29975,29976,29976,29977,29976,29977,29973,29974,29982,29983,29983,29984,29985,29986,29986,29987,29987,29983,29983,29982]} 1. d4 {[%emt 0:00:03]} d5 {[%emt 0:10:08]} 2. c4 {[%emt 0:00:26]} e6 {[%emt 0:00:19]} 3. Nf3 {[%emt 0:00:06]} Nf6 {[%emt 0:00:27]} 4. Nc3 {[%emt 0:00:20]} Be7 {[%emt 0:00:07]} 5. Bg5 {[%emt 0:00:35]} h6 {[%emt 0:00:27]} 6. Bh4 {[%emt 0:00:05]} O-O {[%emt 0:00:06]} 7. e3 {[%emt 0:00:44]} Nbd7 {[%emt 0:00:09]} 8. Rc1 {[%emt 0:01:57]} c5 {[%emt 0:00:22] D63: Queen's Gambit Declined: Classical: 7 Rc1.} 9. dxc5 {[%emt 0:03:22]} dxc4 {[%emt 0:00:29]} 10. c6 $1 {[%emt 0:04:16] The main line 10.c6 scores better than 10.Bxc4.} bxc6 {[%emt 0:00:07] The position is equal.} 11. Bxc4 {[%emt 0:00:05]} Nb6 {[%emt 0:00:05]} 12. Qxd8 {[%emt 0:02:01]} Rxd8 {[%emt 0:00:06]} 13. Be2 {[%emt 0:00:17]} Bb7 {[%emt 0:04:21]} 14. Ne5 {[%emt 0:10:45]} c5 {[%emt 0:03:20]} 15. Bf3 {[%emt 0:06:12]} Bxf3 {[%emt 0:17:57] [#]} 16. gxf3 $146 {[%emt 0:01:42]} ({Predecessor:} 16. Nxf3 a5 17. Bxf6 Bxf6 18. Ke2 a4 19. Rc2 c4 20. Rb1 a3 21. bxa3 Rxa3 22. Rxb6 Rxc3 23. Rxc3 Bxc3 {½-½ (30) Xu,Y (2554)-Lu,S (2615) Xinghua 2021}) 16... Rdc8 {[%emt 0:01:20] Against Nc6} 17. f4 {[%emt 0:10:15]} Rab8 {[%emt 0:03:52]} 18. Ke2 {[%emt 0:03:11]} Nbd5 {[%emt 0:03:13]} 19. Na4 {[%emt 0:02:08]} Nb6 {[%emt 0:06:31]} 20. Nc3 {[%emt 0:02:56]} Nbd5 {[%emt 0:00:29]} 21. Rc2 {[%emt 0:05:19]} Nxc3+ {[%emt 0:08:51]} 22. bxc3 {[%emt 0:00:05]} Nd5 {[%emt 0:01:19]} 23. Bxe7 {[%emt 0:01:35]} Nxe7 {[%emt 0:00:05]} 24. Rd1 {[%emt 0:00:38] aiming for Rd7.} Rd8 {[%emt 0:05:37]} 25. Rxd8+ {[%emt 0:14:21]} Rxd8 $14 {[%emt 0:00:06][%mdl 4096] Endgame KRN-KRN} 26. c4 {[%emt 0:00:35]} Rd6 {[%emt 0:13:27]} 27. Rd2 {[%emt 0:05:14] White stays focused until the end.} Ra6 {[%emt 0:00:19]} (27... Nc8 $16) 28. Rd8+ $18 {[%emt 0:05:05]} Kh7 {[%emt 0:00:07]} 29. Nxf7 {[%emt 0:00:48]} Rxa2+ {[%emt 0:00:23]} 30. Kf3 {[%emt 0:01:04]} Ng6 {[%emt 0:04:24]} (30... Nf5 $142 31. Re8 Kg6) 31. Kg3 {[%emt 0:01:27]} Ra1 {[%emt 0:03:06]} (31... Ne7 $16 32. Re8 Nf5+ 33. Kf3 Kg6) 32. Re8 {[%emt 0:03:45]} Rg1+ {[%emt 0:04:35]} 33. Kh3 {[%emt 0:00:46]} a5 {[%emt 0:02:12]} 34. Rxe6 {[%emt 0:01:37]} a4 {[%emt 0:00:06]} 35. Ra6 {[%emt 0:02:32]} Kg8 {[%emt 0:03:11]} 36. Nd6 {[%emt 0:00:25]} Ra1 {[%emt 0:01:48]} 37. Ne4 {[%emt 0:02:02]} Ne7 {[%emt 0:00:24]} 38. Nxc5 {[%emt 0:00:12]} a3 {[%emt 0:00:05]} 39. Nd3 {[%emt 0:03:07]} g5 {[%emt 0:01:48]} 40. fxg5 {[%emt 0:01:06]} ({Don't do} 40. Rxh6 $6 Rd1 $16) (40. Kg4 a2 $14) 40... hxg5 {[%emt 0:00:06]} 41. Kg2 {[%emt 0:34:56]} ({Weaker is} 41. Kg4 a2 $14) 41... Nf5 {[%emt 0:32:10]} 42. Kf3 {[%emt 0:00:30]} a2 {[%emt 0:02:02]} 43. c5 {[%emt 0:05:40]} Kf7 {[%emt 0:00:00]} 44. Ke4 {[%emt 0:00:00]} Ne7 {[%emt 0:00:00]} 45. Ne5+ {[%emt 0:00:00]} Kg7 {[%emt 0:00:00]} 46. h3 {[%emt 0:00:00]} Nd5 $2 {[%emt 0:00:00] [#]} (46... Kf8 $18 47. c6 Kg7) 47. Kxd5 {[%emt 0:00:00] KRN-KR. White mates.} Rd1+ {[%emt 0:00:00]} 48. Ke6 {[%emt 0:00:00]} a1=Q {[%emt 0:00:00]} 49. Rxa1 {[%emt 0:00:00]} Rxa1 {[%emt 0:00:00] KR-KN} 50. c6 {[%emt 0:00:00]} Rc1 {[%emt 0:00:00]} 51. f4 {[%emt 0:00:00]} gxf4 {[%emt 0:00:00]} 52. exf4 {[%emt 0:00:00][%cal Be3f4,Bf4f5,Bf5f6,Bf6f7][%mdl 32]} Kf8 {[%emt 0:00:00]} 53. f5 {[%emt 0:00:00]} Ke8 {[%emt 0:00:00]} 54. f6 {[%emt 0:00:00]} Kd8 {[%emt 0:00:00]} 55. f7 {[%emt 0:00:00]} Rf1 {[%emt 0:00:00]} 56. Ng6 {[%emt 0:00:00] Weighted Error Value: White=0.05 (flawless) /Black=0.33} 1-0

[Event "Teplice Open 2022"]
[Site "Teplice"]
[Date "2022.06.22"]
[Round "5.3"]
[White "Yankelevich, Lev"]
[Black "Demchenko, Anton"]
[Result "0-1"]
[ECO "E91"]
[WhiteElo "2473"]
[BlackElo "2654"]
[Annotator "TA"]
[PlyCount "140"]
[EventDate "2022.06.18"]
[EventType "swiss"]
[EventCountry "CZE"]
[SourceTitle "playchess.com"]
[Source "ChessBase"]
[SourceQuality "1"]
[TimeControl "40/5400+30:1800+30"]

{[%evp 13,140,32,31,22,25,22,28,24,51,62,64,54,59,53,58,58,54,57,57,41,58,45,40,55,63,56,56,43,50,0,0,0,0,0,0,0,0,-29,-27,-31,-28,-22,-14,-26,-14,-18,-10,-15,0,-12,0,-10,0,-18,-18,-38,-30,-88,-81,-114,-112,-120,-113,-113,-45,-127,-168,-169,-121,-122,-111,-93,-108,-347,-346,-329,-316,-306,-277,-490,-506,-480,-500,-496,-474,-462,-470,-451,-451,-418,-406,-373,-283,-399,-294,-2627,-1208,-3562,-2538,-2129,-1722,-5761,-5761,-29974,-29975,-29972,-29969,-29980,-29981,-29980,-29980,-29980,-29981,-29983,-29984,-29984,-29985,-29983,-29983,-29983,-29983,-29984,-29985,-29985,-29985,-29986,-29987,-29987,-29987]} 1. d4 {[%emt 0:00:08]} Nf6 {[%emt 0:00:10]} 2. c4 {[%emt 0:00:06]} g6 {[%emt 0:00:06]} 3. Nc3 {[%emt 0:00:46]} Bg7 {[%emt 0:00:06]} 4. e4 {[%emt 0:00:29]} O-O {[%emt 0:00:29]} 5. Be2 {[%emt 0:00:05]} d6 {[%emt 0:00:11]} 6. Bg5 {[%emt 0:00:09]} Na6 {[%emt 0:00:37]} 7. Nf3 {[%emt 0:00:05]} h6 {[%emt 0:00:18]} 8. Be3 {[%emt 0:00:05] E91: King's Indian: Classical: 6 Be2, unusual replies including 6...c5 and 6...Bg4.} Ng4 {[%emt 0:00:51]} 9. Bc1 {[%emt 0:00:07]} e5 {[%emt 0:00:11]} 10. O-O {[%emt 0:00:41] White has an edge.} c6 {[%emt 0:03:43]} 11. d5 {[%emt 0:00:32]} f5 {[%emt 0:23:47]} 12. g3 {[%emt 0:00:03]} f4 {[%emt 0:13:46]} 13. Nh4 {[%emt 0:00:04]} g5 $1 {[%emt 0:00:16]} 14. Bxg4 {[%emt 0:00:04]} gxh4 {[%emt 0:00:16]} 15. gxf4 {[%emt 0:00:14]} exf4 {[%emt 0:00:34]} 16. Kh1 {[%emt 0:00:03] [#]} Qe7 $146 {[%emt 0:09:07]} ({Predecessor:} 16... Be5 17. Rg1 Kh7 18. Bd2 Qf6 19. Bh5 Rg8 20. Rxg8 Kxg8 21. Qf3 {1-0 (21) Sandipan,C (2566)-Bogdanovich,S (2564) Sanya 2017}) 17. Rg1 {[%emt 0:00:13]} Nc5 {[%emt 0:02:26][%cal Ba6c5,Bc5d7,Bd7e5][%mdl 32]} 18. Qf3 {[%emt 0:09:19]} Kh8 {[%emt 0:10:49]} 19. Bd2 {[%emt 0:07:01]} Bxg4 {[%emt 0:02:17]} 20. Rxg4 {[%emt 0:00:22]} Nd7 $1 {[%emt 0:00:10]} 21. Rxf4 {[%emt 0:17:09]} (21. Bxf4 $2 Ne5 22. Bxe5 Rxf3 $19) ({Better is} 21. Qh3 $1 $14) 21... Ne5 $11 {[%emt 0:02:36][%csl LRc4,LRf3]} 22. Qe2 {[%emt 0:02:35]} Rxf4 {[%emt 0:00:25]} 23. Bxf4 {[%emt 0:00:05] Hoping for Bd2.} Rf8 {[%emt 0:00:01]} 24. Bxe5 {[%emt 0:01:40]} Bxe5 {[%emt 0:04:46]} 25. Qe3 {[%emt 0:12:27]} Qg5 {[%emt 0:04:35] Strongly threatening ...Qxe3.} 26. Ne2 {[%emt 0:11:54]} Qxe3 {[%emt 0:03:39]} 27. fxe3 $15 {[%emt 0:00:37][%cal Oe2f4][%mdl 4096] Endgame KRB-KRN} Rf2 {[%emt 0:00:03] Prevents Nf4.} 28. Nf4 $1 {[%emt 0:00:33]} Kg7 {[%emt 0:01:16][%mdl 1024] Black has compensation.} ({Don't do} 28... Bxb2 29. Rb1 Rd2 30. Ng6+ Kh7 31. Nxh4 $14) 29. Rg1+ {[%emt 0:03:55]} Kf7 {[%emt 0:00:48]} 30. Rg2 {[%emt 0:00:04]} Rf1+ {[%emt 0:05:19]} 31. Rg1 {[%emt 0:00:03]} Rf2 {[%emt 0:00:11]} 32. Rg2 {[%emt 0:00:03]} Rf1+ {[%emt 0:00:24]} 33. Rg1 {[%emt 0:00:06]} Rf3 {[%emt 0:00:03]} 34. Nd3 {[%emt 0:05:44]} Bf6 {[%emt 0:03:58]} 35. e5 {[%emt 0:05:16]} (35. dxc6 $11 bxc6 36. b3) 35... dxe5 $17 {[%emt 0:01:37]} 36. Nc5 {[%emt 0:00:37]} cxd5 $1 {[%emt 0:01:04]} 37. cxd5 {[%emt 0:00:06]} Rxe3 {[%emt 0:03:31]} 38. Rf1 {[%emt 0:00:32] [#]} Ke7 {[%emt 0:03:35] Against Nd7} (38... Kg6 $1 $17 {Threatens to win with ...b6.} 39. d6 b6) 39. Rd1 {[%emt 0:00:23]} ({White should play} 39. b4 $1 $15 Bg5 40. Nxb7) 39... b6 {[%emt 0:00:50]} 40. d6+ {[%emt 0:01:36]} Kd8 {[%emt 0:00:21]} ({Black should try} 40... Kf7 $19 41. Nd7 Bg5) 41. Ne6+ {[%emt 0:30:16]} Kd7 {[%emt 0:31:07]} 42. Nf8+ {[%emt 0:00:04]} Ke8 {[%emt 0:00:00]} 43. Ne6 {[%emt 0:00:00] [#] This move loses the game for White.} (43. Ng6 $17 {might work better.} Kf7 44. d7 Kxg6 45. Rd6) 43... Kf7 $1 $19 {[%emt 0:00:00]} ({Don't go for} 43... Kd7 $2 44. Nf8+ Ke8 45. Ng6 $19) 44. Nc7 {[%emt 0:00:00] Nd5 is the strong threat.} e4 {[%emt 0:00:00]} 45. Kg1 {[%emt 0:00:00]} Rd3 {[%emt 0:00:00]} (45... Bxb2 $2 46. d7 Bf6 47. Nd5 $18) 46. Rxd3 {[%emt 0:00:00]} (46. Re1) 46... exd3 {[%emt 0:00:00] KB-KN} 47. Kf2 {[%emt 0:00:00]} Be5 {[%emt 0:00:00]} 48. h3 {[%emt 0:00:00]} Bxd6 {[%emt 0:00:00]} 49. Nb5 {[%emt 0:00:00]} Bc5+ {[%emt 0:00:00]} 50. Kf3 {[%emt 0:00:00]} a5 {[%emt 0:00:00]} 51. Nc3 {[%emt 0:00:00]} Kf6 {[%emt 0:00:00]} 52. Ke4 {[%emt 0:00:00]} d2 {[%emt 0:00:00][%cal Oa5a4]} 53. a3 {[%emt 0:00:00]} (53. b3 {was worth a try.}) 53... Kg5 {[%emt 0:00:00][%cal Oa5a4]} 54. Kd3 $2 {[%emt 0:00:00]} (54. a4) 54... Kf4 {[%emt 0:00:00] And now ...Kg3 would win.} 55. Kxd2 {[%emt 0:00:00]} Kg3 {[%emt 0:00:00]} 56. Ke2 {[%emt 0:00:00]} Bd4 {[%emt 0:00:00] aiming for ...Bxc3.} 57. Nd5 {[%emt 0:00:00]} Bxb2 {[%emt 0:00:00]} 58. Nxb6 {[%emt 0:00:00]} Bxa3 {[%emt 0:00:00] Black mates.} 59. Nc4 {[%emt 0:00:00]} Bb4 {[%emt 0:00:00]} 60. Kf1 {[%emt 0:00:00]} a4 {[%emt 0:00:00]} 61. Kg1 {[%emt 0:00:00]} Bc5+ {[%emt 0:00:00]} 62. Kh1 {[%emt 0:00:00]} Kxh3 {[%emt 0:01:22]} 63. Nd2 {[%emt 0:00:00]} Bb4 {[%emt 0:00:37]} 64. Nc4 {[%emt 0:00:00]} Kg3 {[%emt 0:00:08]} 65. Kg1 {[%emt 0:00:00]} Bc5+ {[%emt 0:01:25]} 66. Kh1 {[%emt 0:00:00]} Bd4 {[%emt 0:00:17]} ({And not} 66... a3 67. Nxa3 Bxa3 68. Kg1 $11) 67. Na3 {[%emt 0:00:00]} Kf3 {[%emt 0:00:30]} 68. Kh2 {[%emt 0:00:00]} Ke4 {[%emt 0:00:20]} 69. Kh3 {[%emt 0:00:00]} Kd3 {[%emt 0:00:17]} 70. Kxh4 {[%emt 0:00:00]} Bc5 {[%emt 0:00:17] Weighted Error Value: White=0.59/Black=0.11 (very precise)} 0-1

[Event "Teplice Open 2022"]
[Site "Teplice"]
[Date "2022.06.22"]
[Round "5.4"]
[White "Azarov, Sergei"]
[Black "Kraus, Tomas"]
[Result "1/2-1/2"]
[ECO "B45"]
[WhiteElo "2588"]
[BlackElo "2472"]
[Annotator "TA"]
[PlyCount "77"]
[EventDate "2022.06.18"]
[EventType "swiss"]
[EventCountry "CZE"]
[SourceTitle "playchess.com"]
[Source "ChessBase"]
[SourceQuality "1"]
[TimeControl "40/5400+30:1800+30"]

{[%evp 15,77,30,31,35,20,13,48,36,49,45,35,-11,-16,-13,-11,-11,0,0,12,4,76,66,77,63,63,56,61,45,43,24,20,20,28,20,22,0,0,0,16,16,16,16,16,16,16,16,16,16,16,0,0,0,0,0,0,0,0,0,0,0,0,0,0,0]} 1. e4 {[%emt 0:00:03]} c5 {[%emt 0:00:11]} 2. Nf3 {[%emt 0:00:17]} e6 {[%emt 0:00:36]} 3. d4 {[%emt 0:00:30]} cxd4 {[%emt 0:00:05]} 4. Nxd4 {[%emt 0:00:04]} Nf6 {[%emt 0:00:42][%cal Bg8f6,Bf6d5,Bd5b4][%mdl 32]} 5. Nc3 {[%emt 0:00:32]} Nc6 {[%emt 0:00:18]} 6. Nxc6 {[%emt 0:00:45]} bxc6 {[%emt 0:00:54]} 7. e5 {[%emt 0:00:18]} Nd5 {[%emt 0:00:17]} 8. Ne4 {[%emt 0:00:25]} Bb7 {[%emt 0:02:13]} 9. Bd3 {[%emt 0:03:05] B45: Sicilian Four Knights.} Qc7 {[%emt 0:02:28]} 10. f4 {[%emt 0:00:44]} c5 {[%emt 0:00:54]} 11. c4 {[%emt 0:03:30] White is slightly better.} Nb4 {[%emt 0:00:07]} 12. Bb1 {[%emt 0:00:24]} Nc6 {[%emt 0:03:48] [#]} 13. Nd6+ $146 {[%emt 0:17:20]} (13. O-O $14) ({Predecessor:} 13. O-O a5 14. Be3 Nd4 15. Nc3 Be7 16. Be4 Bxe4 17. Nxe4 Nf5 18. Bf2 Qc6 19. Qf3 {½-½ (37) Savitskiy,S (2431)-Petrov,N (2555) Cheliabinsk 2021}) 13... Bxd6 $11 {[%emt 0:01:02]} 14. Qxd6 {[%emt 0:00:15]} Qxd6 {[%emt 0:07:32]} 15. exd6 {[%emt 0:00:46]} Nd4 {[%emt 0:11:27]} 16. Kf2 {[%emt 0:00:24]} f6 {[%emt 0:09:47]} 17. Be3 {[%emt 0:02:38][%cal Ob2b4]} e5 {[%emt 0:01:21]} (17... a5 $11 {remains equal.}) 18. Bxd4 $16 {[%emt 0:07:04]} cxd4 {[%emt 0:01:08] [#]} 19. Re1 $1 {[%emt 0:00:15]} O-O {[%emt 0:00:55]} 20. Bf5 {[%emt 0:02:59]} Rad8 {[%emt 0:08:56]} 21. b4 {[%emt 0:02:38] White is much more active.} g6 {[%emt 0:03:21]} (21... exf4 $2 22. Re7 Bc8 23. c5 $18) 22. Be4 {[%emt 0:19:30]} Bxe4 {[%emt 0:04:56]} 23. Rxe4 $11 {[%emt 0:00:06][%mdl 4096] Endgame next Ke2 is good for White. KRR-KRR} Rb8 {[%emt 0:00:28]} 24. a3 {[%emt 0:00:53] Ke2 is the strong threat.} a5 {[%emt 0:01:13] The position is equal.} 25. Rb1 {[%emt 0:00:57]} (25. b5 $5 {[%cal Rf2e2]}) 25... axb4 {[%emt 0:04:45]} 26. axb4 {[%emt 0:00:05] [#] Strongly threatening Ke2.} Rfc8 {[%emt 0:05:26]} 27. c5 {[%emt 0:00:58]} Rxc5 {[%emt 0:06:23]} 28. bxc5 {[%emt 0:00:07]} Rxb1 {[%emt 0:00:04]} 29. fxe5 {[%emt 0:00:18]} fxe5 {[%emt 0:09:04]} 30. Rxe5 {[%emt 0:00:27][%cal Oc5c6] Black must now prevent c6! KR-KR} Rc1 {[%emt 0:00:34]} 31. Ke2 {[%emt 0:04:08] Threatens to win with Kd3.} Rc3 {[%emt 0:00:38]} 32. g4 {[%emt 0:12:18]} h6 {[%emt 0:03:02]} 33. h4 {[%emt 0:02:13]} Kf7 {[%emt 0:01:25]} 34. g5 {[%emt 0:00:37]} hxg5 {[%emt 0:00:37]} 35. hxg5 {[%emt 0:00:06]} Kf8 {[%emt 0:01:15]} 36. Kd2 {[%emt 0:00:12]} Kf7 {[%emt 0:01:35]} 37. Re7+ {[%emt 0:03:09]} Kf8 {[%emt 0:02:18]} 38. Rxd7 {[%emt 0:02:55] Hoping for Rd8+.} Rxc5 {[%emt 0:00:11]} 39. Rh7 {[%emt 0:07:03] Weighted Error Value: White=0.05 (flawless) /Black=0.09 (flawless)} 1/2-1/2

[Event "Teplice Open 2022"]
[Site "Teplice"]
[Date "2022.06.22"]
[Round "5.5"]
[White "Karthik Venkataraman"]
[Black "Stocek, Jiri"]
[Result "1/2-1/2"]
[ECO "E11"]
[WhiteElo "2480"]
[BlackElo "2533"]
[Annotator "TA"]
[PlyCount "57"]
[EventDate "2022.06.18"]
[EventType "swiss"]
[EventCountry "CZE"]
[SourceTitle "playchess.com"]
[Source "ChessBase"]
[SourceQuality "1"]
[TimeControl "40/5400+30:1800+30"]

{[%evp 12,57,0,0,40,31,45,18,18,0,14,16,11,4,10,-6,-6,-6,-6,0,12,9,12,10,0,7,16,3,42,34,34,-15,-14,-24,-26,-41,0,-26,-13,-32,0,0,0,0,0,-1,9,0]} 1. d4 {[%emt 0:04:07]} Nf6 {[%emt 0:01:02]} 2. c4 {[%emt 0:00:07]} e6 {[%emt 0:00:25]} 3. g3 {[%emt 0:00:04]} Bb4+ {[%emt 0:02:59]} 4. Bd2 {[%emt 0:00:08]} a5 {[%emt 0:01:14]} 5. Bg2 {[%emt 0:00:07]} d5 {[%emt 0:00:20]} 6. Qc2 {[%emt 0:00:06]} O-O {[%emt 0:01:03] 6...0-0 is better than 6...Nc6.} 7. Nf3 {[%emt 0:00:05]} h6 {[%emt 0:05:43] E11: Bogo-Indian.} 8. O-O {[%emt 0:00:10]} Bd7 {[%emt 0:00:10] [#]} 9. Bf4 $146 {[%emt 0:05:48]} ({Predecessor:} 9. Rc1 Nc6 10. a3 Bxd2 11. Nbxd2 a4 12. Rab1 Qe7 13. e4 dxe4 14. Nxe4 Nxe4 15. Qxe4 {½-½ (33) Ftacnik,L (2544)-Stocek,J (2557) Czech Republic 2012}) 9... dxc4 {[%emt 0:11:43]} 10. Ne5 {[%emt 0:01:47]} Nd5 {[%emt 0:05:42]} 11. Qxc4 {[%emt 0:01:14]} Bc6 {[%emt 0:10:20]} 12. Bc1 {[%emt 0:08:11]} Nb6 {[%emt 0:01:30]} 13. Qd3 {[%emt 0:00:06]} Bxg2 {[%emt 0:00:12]} 14. Kxg2 {[%emt 0:00:04]} Bd6 {[%emt 0:06:47]} 15. Nf3 {[%emt 0:00:36]} c5 {[%emt 0:02:00]} 16. Rd1 {[%emt 0:02:19] [#] aiming for dxc5.} Nc6 {[%emt 0:03:09]} 17. Nc3 {[%emt 0:00:11] And now dxc5 would win.} c4 {[%emt 0:04:30]} 18. Qe4 {[%emt 0:01:30]} Qe7 {[%emt 0:00:48]} 19. a3 {[%emt 0:03:09]} Rac8 {[%emt 0:02:08]} 20. Qc2 {[%emt 0:01:50]} f5 {[%emt 0:04:33]} 21. e4 {[%emt 0:03:21]} (21. Na4 $14 {was preferrable.} Nd5 22. Qxc4) 21... fxe4 {[%emt 0:01:58]} 22. Nxe4 {[%emt 0:00:35]} Bb8 {[%emt 0:04:26]} 23. Qe2 {[%emt 0:10:33]} Nd5 {[%emt 0:04:29]} 24. Nh4 {[%emt 0:04:12]} (24. Bd2 $5 {[%cal Ra1c1]}) 24... Qf7 {[%emt 0:00:39] Against Ng6} 25. f4 {[%emt 0:02:18] Prevents e5.} (25. Qg4 $5 {[%cal Rc1h6]}) 25... b6 {[%emt 0:01:36]} 26. Nf3 {[%emt 0:02:19] The position is equal.} ({Much weaker is} 26. Qxc4 e5 27. Qd3 exf4 $17) 26... Qg6 {[%emt 0:06:13][%cal Rf8f4] [#] ...Rxf4 is the strong threat.} 27. Nh4 {[%emt 0:03:19]} Qf7 {[%emt 0:00:27]} 28. Nf3 {[%emt 0:02:10]} ({Of course not} 28. Qxc4 e5 29. Qd3 exf4 $17) 28... Qg6 {[%emt 0:01:50][%cal Rf8f4] White must now prevent ...Rxf4.} 29. Nh4 {[%emt 0:02:42] Weighted Error Value: White=0.08 (flawless) /Black=0.08 (flawless)} 1/2-1/2

[Event "Teplice Open 2022"]
[Site "Teplice"]
[Date "2022.06.22"]
[Round "5.6"]
[White "Ali Marandi, Cemil Can"]
[Black "Raja Harshit"]
[Result "1-0"]
[ECO "B52"]
[WhiteElo "2532"]
[BlackElo "2479"]
[Annotator "TA"]
[PlyCount "59"]
[EventDate "2022.06.18"]
[EventType "swiss"]
[EventCountry "CZE"]
[SourceTitle "playchess.com"]
[Source "ChessBase"]
[SourceQuality "1"]
[TimeControl "40/5400+30:1800+30"]

{[%evp 26,59,-11,-17,-17,-17,-17,-34,-41,-54,-14,-34,-8,-10,-16,-49,0,-31,147,109,166,184,151,190,156,127,334,318,687,335,658,628,885,835,1074,1108]} 1. e4 {[%emt 0:00:02]} c5 {[%emt 0:19:45]} 2. Nf3 {[%emt 0:00:07]} d6 {[%emt 0:00:05]} 3. Bb5+ {[%emt 0:00:16]} Bd7 {[%emt 0:00:06]} 4. Bxd7+ {[%emt 0:01:44]} Qxd7 {[%emt 0:00:07]} 5. O-O {[%emt 0:02:29]} Nc6 {[%emt 0:01:06]} 6. c3 {[%emt 0:05:17]} Nf6 {[%emt 0:00:29]} 7. Re1 {[%emt 0:00:14]} e6 {[%emt 0:00:09]} 8. d4 {[%emt 0:00:19]} cxd4 {[%emt 0:00:41]} 9. cxd4 {[%emt 0:00:02]} d5 {[%emt 0:00:07]} 10. e5 {[%emt 0:00:10]} Ne4 {[%emt 0:00:07]} 11. Nbd2 {[%emt 0:00:12]} Nxd2 {[%emt 0:00:51]} 12. Bxd2 {[%emt 0:00:06]} Be7 {[%emt 0:02:16]} 13. Rc1 {[%emt 0:01:36]} O-O {[%emt 0:00:07]} 14. Rc3 {[%emt 0:00:04]} Rfc8 {[%emt 0:04:58] B52: Sicilian: Moscow Variation with 3...Bd7.} 15. a3 {[%emt 0:08:52]} b5 {[%emt 0:03:36]} 16. Rd3 {[%emt 0:02:41]} Qd8 {[%emt 0:08:14] Black is slightly better.} 17. h4 {[%emt 0:06:25][%cal Bh2h4,Bh4h5,Bh5h6][%mdl 32]} b4 {[%emt 0:03:13]} (17... Bxh4 {looks sharper.} 18. Nxh4 Qxh4 19. Ree3 Ne7) 18. Nh2 {[%emt 0:05:20][%cal Bf3h2,Bh2g4,Bg4f6,Bf6d5,Bd5e3][%mdl 32]} bxa3 {[%emt 0:11:57]} ({Don't do} 18... Bxh4 19. Qh5 h6 20. Ng4 $16) 19. bxa3 {[%emt 0:01:53]} Rab8 {[%emt 0:05:10]} ({But not} 19... Bxh4 20. Qh5 $16) 20. Qg4 {[%emt 0:02:16] [#]} Bf8 $146 {[%emt 0:01:17]} ({Much less strong is} 20... Bxh4 21. Bh6 g6 22. Qf4 $16) (20... Kh8 $15 {should be considered.}) ({Predecessor:} 20... Na5 21. Bh6 g6 22. h5 Rb3 23. hxg6 hxg6 24. Rh3 Rxh3 25. Qxh3 Qc7 26. Nf3 Nb3 {½-½ (51) Krak,T (2268)-Pacher,M (2467) Pardubice 2018}) 21. Qf4 {[%emt 0:07:36]} Qb6 $2 {[%emt 0:07:59]} (21... Ne7 $15 {stays ahead.}) 22. h5 {[%emt 0:07:55]} Rb7 {[%emt 0:04:49] [#]} (22... Qb5 $16 {was worth a try.} 23. Rf3 Rc7) 23. Ng4 $1 $18 {[%emt 0:01:43]} Kh8 {[%emt 0:00:59]} 24. h6 {[%emt 0:03:35] Hoping for hxg7+.} g6 {[%emt 0:00:08]} 25. Rc1 {[%emt 0:00:55]} a5 {[%emt 0:01:13] [#] Prevents Bb4. This move loses the game for Black.} (25... Rbc7 $16 26. Kh2 Kg8) 26. Rdc3 $1 {[%emt 0:03:23]} Kg8 $2 {[%emt 0:01:01]} (26... Ra7 27. Kh1 Rac7) 27. Nf6+ {[%emt 0:03:53]} Kh8 {[%emt 0:00:07] [#]} 28. Nxd5 {[%emt 0:00:18][%mdl 512] White is clearly winning.} Qa6 {[%emt 0:01:14]} (28... exd5 29. Qf6+) 29. Ne3 {[%emt 0:01:07]} Rbc7 {[%emt 0:05:34]} 30. d5 {[%emt 0:00:52] Weighted Error Value: White=0.10 (very precise) /Black=0.71} 1-0